[Event "44th Chess Olympiad Open 2022"]
[Site "Chennai"]
[Date "2022.08.05"]
[Round "7.15"]
[White "Navara, David"]
[Black "Megaranto, Susanto"]
[Result "1-0"]
[ECO "B05"]
[WhiteElo "2688"]
[BlackElo "2529"]
[Annotator "TA"]
[PlyCount "131"]
[EventDate "2022.07.29"]
[EventType "team-tourn"]
[EventCountry "IND"]
[SourceTitle "playchess.com"]
[Source "ChessBase"]
[SourceQuality "1"]
[WhiteTeam "Czech Republic"]
[BlackTeam "Indonesia"]
[WhiteTeamCountry "CZE"]
[BlackTeamCountry "INA"]
[TimeControl "40/5400+30:1800+30"]

{[%evp 19,131,36,71,47,48,43,66,52,58,68,76,35,36,51,35,41,35,29,38,29,30,21,29,35,39,31,34,34,29,31,38,14,20,0,0,0,45,44,41,49,46,46,50,44,35,45,47,50,48,49,70,70,70,70,70,70,70,70,126,139,141,90,354,241,246,247,231,248,281,285,292,295,299,306,304,248,299,299,299,0,92,0,299,299,299,299,299,299,299,299,299,43,299,299,299,292,292,285,283,263,857,751,1163,619,5057,5057,29963,29964,29965,29963,29963,29962,12788,7353]} 1. e4 {[%emt 0:00:02][%cal Be2e4,Be4e5][%mdl 32]} Nf6 {[%emt 0:00:16]} 2. e5 {[%emt 0:00:04]} Nd5 {[%emt 0:00:06]} 3. d4 {[%emt 0:00:04]} d6 {[%emt 0:00:03]} 4. Nf3 {[%emt 0:00:11]} Bg4 {[%emt 0:00:28]} 5. Be2 {[%emt 0:00:27]} e6 {[%emt 0:00:06]} 6. h3 {[%emt 0:03:27]} Bh5 {[%emt 0:00:04]} 7. O-O {[%emt 0:01:41]} Be7 {[%emt 0:00:09]} 8. c4 {[%emt 0:00:11]} Nb6 {[%emt 0:00:04]} 9. Nc3 {[%emt 0:01:35]} O-O {[%emt 0:00:09]} 10. Be3 {[%emt 0:02:00]} N8d7 {[%emt 0:00:10]} 11. b3 {[%emt 0:10:37] B05: Alekhine's Defence: 4 Nf3 Bg4.} dxe5 {[%emt 0:06:40]} 12. Nxe5 {[%emt 0:00:46]} Nxe5 {[%emt 0:00:30]} 13. Bxh5 {[%emt 0:00:46] White is slightly better.} Ng6 {[%emt 0:00:31] [#]} 14. g3 $146 {[%emt 0:06:56]} ({Predecessor:} 14. Bxg6 hxg6 15. Qg4 c6 16. Rad1 Qc7 17. Bf4 Qc8 18. Rd3 Rd8 19. Rfd1 Rd7 20. Qg3 {½-½ (38) Heijnens,R-Van der Drift,A Netherlands 1984}) 14... c6 {[%emt 0:03:45]} 15. Qe2 {[%emt 0:08:04]} Nc8 {[%emt 0:07:10]} 16. Rad1 {[%emt 0:09:40]} Qa5 {[%emt 0:11:02]} 17. Ne4 {[%emt 0:12:34]} Nd6 {[%emt 0:00:36]} 18. Bd2 {[%emt 0:00:58]} Qd8 {[%emt 0:11:09]} 19. Nc5 {[%emt 0:09:06]} Bf6 {[%emt 0:10:03]} 20. Bc3 {[%emt 0:07:37]} Qc7 {[%emt 0:03:48]} 21. Rd3 {[%emt 0:02:23]} Rad8 {[%emt 0:01:51]} 22. Bf3 {[%emt 0:05:40]} Rfe8 {[%emt 0:03:51][%cal Bf8e8,Be8e7,Be7d7][%mdl 32]} 23. Ne4 {[%emt 0:02:17]} Nxe4 {[%emt 0:00:06]} 24. Bxe4 {[%emt 0:00:33]} Re7 {[%emt 0:08:41]} 25. h4 {[%emt 0:05:04]} Red7 {[%emt 0:02:35][%cal Rf6d4]} 26. h5 {[%emt 0:03:52]} Ne7 {[%emt 0:02:12][%cal Rf6d4]} 27. Rfd1 {[%emt 0:00:07]} c5 {[%emt 0:03:25]} 28. Qe3 {[%emt 0:01:13]} cxd4 {[%emt 0:08:03]} 29. Bxd4 {[%emt 0:00:04]} Bxd4 {[%emt 0:00:18]} 30. Rxd4 {[%emt 0:00:05]} Rxd4 {[%emt 0:00:39]} 31. Rxd4 {[%emt 0:00:09]} Rxd4 {[%emt 0:01:02]} 32. Qxd4 $14 {[%emt 0:00:08][%mdl 4096] Endgame KQB-KQN} b6 {[%emt 0:00:31]} 33. b4 {[%emt 0:01:12]} f5 {[%emt 0:02:49]} 34. Bg2 {[%emt 0:05:07]} Kf7 {[%emt 0:02:55]} 35. c5 {[%emt 0:00:33]} bxc5 $1 {[%emt 0:00:16]} 36. bxc5 {[%emt 0:00:07][%cal Oc5c6]} Ng8 {[%emt 0:00:29]} 37. c6 {[%emt 0:01:06]} Nf6 {[%emt 0:00:12]} 38. Qb4 {[%emt 0:01:53]} Ne8 {[%emt 0:05:04]} (38... Ke8 $14) 39. h6 $16 {[%emt 0:00:46] 0x0.00144c2ec758dp-1022s more active pieces.} gxh6 {[%emt 0:00:52]} 40. Bf3 {[%emt 0:00:27]} (40. Qd2 $142 $1 {[%cal Rd2d7]}) 40... Qd6 {[%emt 0:05:44][%mdl 8192]} (40... Nf6 $16 {was called for.}) 41. Qb7+ {[%emt 0:08:36]} Nc7 {[%emt 0:03:21]} 42. Qxa7 {[%emt 0:00:11]} e5 {[%emt 0:00:04]} 43. Qb8 $1 {[%emt 0:06:06]} e4 {[%emt 0:11:33]} 44. Bh5+ {[%emt 0:00:12]} Ke6 {[%emt 0:00:16]} 45. Qc8+ {[%emt 0:08:18]} Ke5 {[%emt 0:01:04]} 46. Qd7 {[%emt 0:04:23] And now Bf7 would win.} Ne6 {[%emt 0:05:36]} 47. Bf7 {[%emt 0:00:41] Bxe6 is the strong threat.} (47. Qxh7 Qxc6 48. Qxh6 Qb5 $16) 47... Nd8 {[%emt 0:08:09]} 48. Be8 {[%emt 0:00:54] Strongly threatening c7.} (48. Qe8+ Kf6 49. Bc4 Nxc6 $16) 48... Ne6 {[%emt 0:00:10] Prevents c7.} 49. Bf7 $2 {[%emt 0:04:14]} (49. Qxh7 Qd1+ 50. Kh2 Qd2 $11) (49. Qxd6+ $18 Kxd6 50. Bd7) 49... Nd8 $1 {[%emt 0:00:07]} 50. Be8 {[%emt 0:00:07]} (50. Qe8+ $16 Kf6 51. Bc4) 50... Ne6 $18 {[%emt 0:00:03] White stays focused until the end.} 51. Qxd6+ {[%emt 0:01:14]} ({Worse is} 51. Qxh7 Qd1+ 52. Kh2 Qd2 $11) 51... Kxd6 {[%emt 0:00:05] [#] KB-KN} 52. Bd7 $1 {[%emt 0:00:04] Threatens to win with Bxe6.} Nc5 {[%emt 0:05:25]} 53. Kg2 {[%emt 0:01:39]} (53. Bxf5 Kxc6 54. Bxh7 Kd6 $16) 53... Kc7 {[%emt 0:01:29]} (53... Nxd7 $2 54. cxd7 Kxd7 55. Kh3 $18) 54. a3 {[%emt 0:00:39]} (54. Bxf5 Kxc6 55. f3 (55. Bxh7 Kd5 $16) 55... exf3+ 56. Kxf3 Na4 $16) 54... Kd6 {[%emt 0:00:03]} (54... Nxd7 $2 55. cxd7 Kxd7 56. Kh3 $18) 55. Kh3 $2 {[%emt 0:00:36]} (55. Bxf5 $18 Kxc6 56. a4 (56. Bxh7 Kd5 $16)) 55... Kc7 $2 {[%emt 0:00:47][%mdl 8192]} (55... Nxd7 $2 56. cxd7 Kxd7 57. Kh4 $18) (55... Nd3 $1 $14) 56. Bxf5 {[%emt 0:00:24] aiming for Kh4.} Kxc6 {[%emt 0:00:06]} 57. Bxh7 {[%emt 0:00:27]} Kd5 {[%emt 0:01:41]} 58. Bg6 {[%emt 0:00:25]} Kd4 {[%emt 0:00:17]} 59. Be8 {[%emt 0:00:31] Against Na4} e3 $2 {[%emt 0:00:43]} (59... Nd3 60. Kg2 e3 61. fxe3+ Kxe3) 60. fxe3+ {[%emt 0:00:05]} Kxe3 {[%emt 0:00:03]} 61. a4 {[%emt 0:00:23]} Nb7 {[%emt 0:00:17]} 62. Kh4 {[%emt 0:00:39] White wants to mate with Kh5.} Nd6 {[%emt 0:00:55]} 63. Bg6 {[%emt 0:00:41]} Nb7 {[%emt 0:00:42]} 64. Kh5 {[%emt 0:00:22]} Kf3 {[%emt 0:00:24] [#]} 65. g4 $1 {[%emt 0:00:05]} Kf4 {[%emt 0:00:32]} 66. Bf5 {[%emt 0:00:06] Weighted Error Value: White=0.30/Black=0.36} 1-0

[Event "44th Chess Olympiad Open 2022"]
[Site "Chennai"]
[Date "2022.08.05"]
[Round "7.15"]
[White "Hracek, Zbynek"]
[Black "Taher, Yoseph Theolifus"]
[Result "1-0"]
[ECO "B12"]
[WhiteElo "2555"]
[BlackElo "2463"]
[Annotator "ChessBase"]
[PlyCount "85"]
[EventDate "2022.07.29"]
[EventType "team-tourn"]
[EventCountry "IND"]
[SourceTitle "playchess.com"]
[Source "ChessBase"]
[SourceQuality "1"]
[WhiteTeam "Czech Republic"]
[BlackTeam "Indonesia"]
[WhiteTeamCountry "CZE"]
[BlackTeamCountry "INA"]
[TimeControl "40/5400+30:1800+30"]

1. e4 {[%emt 0:00:04]} c6 {[%emt 0:00:14]} 2. d4 {[%emt 0:00:30]} d5 {[%emt 0:00:06]} 3. e5 {[%emt 0:00:24]} Bf5 {[%emt 0:00:07]} 4. c4 {[%emt 0:01:10]} e6 {[%emt 0:02:42]} 5. Nc3 {[%emt 0:01:29]} Nd7 {[%emt 0:02:25]} 6. cxd5 {[%emt 0:00:22]} cxd5 {[%emt 0:00:35]} 7. Bd3 {[%emt 0:00:06]} Bg6 {[%emt 0:06:30]} 8. h4 {[%emt 0:03:15]} Bxd3 {[%emt 0:00:48]} 9. Qxd3 {[%emt 0:00:03]} h5 {[%emt 0:00:06]} 10. Nf3 {[%emt 0:00:23]} a6 {[%emt 0:02:30]} 11. O-O {[%emt 0:00:53]} Be7 {[%emt 0:01:01]} 12. g3 {[%emt 0:03:16]} g6 {[%emt 0:09:42]} 13. Ne2 {[%emt 0:02:02]} Kf8 {[%emt 0:05:06]} 14. Bg5 {[%emt 0:07:24]} Kg7 {[%emt 0:06:23]} 15. Rac1 {[%emt 0:07:56]} Nb8 {[%emt 0:00:40]} 16. b4 {[%emt 0:14:47]} Nc6 {[%emt 0:01:09]} 17. a3 {[%emt 0:00:17]} Qd7 {[%emt 0:07:01]} 18. Rc3 {[%emt 0:09:38]} Bxg5 {[%emt 0:03:36]} 19. Nxg5 {[%emt 0:00:06]} Nge7 {[%emt 0:00:06]} 20. Rfc1 {[%emt 0:02:54]} Rac8 {[%emt 0:00:30]} 21. Kg2 {[%emt 0:07:24]} Nb8 {[%emt 0:02:30]} 22. Nf4 {[%emt 0:02:20]} Rxc3 {[%emt 0:02:02]} 23. Rxc3 {[%emt 0:00:25]} Nbc6 {[%emt 0:00:30]} 24. f3 {[%emt 0:07:53]} Nf5 {[%emt 0:04:34]} 25. Ne2 {[%emt 0:00:52]} Qe7 {[%emt 0:01:32]} 26. Qd2 {[%emt 0:01:39]} Rh6 {[%emt 0:10:47]} 27. Qc1 {[%emt 0:01:14]} Rh8 {[%emt 0:00:18]} 28. Rc5 {[%emt 0:02:35]} Qd7 {[%emt 0:01:17]} 29. g4 {[%emt 0:08:43]} Nfe7 {[%emt 0:06:01]} 30. Qf4 {[%emt 0:01:37]} Ng8 {[%emt 0:00:02]} 31. Kg3 {[%emt 0:02:26]} hxg4 {[%emt 0:05:23]} 32. fxg4 {[%emt 0:00:09]} f6 {[%emt 0:00:16]} 33. Nf3 {[%emt 0:03:05]} Qe7 {[%emt 0:00:44]} 34. a4 {[%emt 0:03:47]} fxe5 {[%emt 0:00:11]} 35. dxe5 {[%emt 0:00:12]} a5 {[%emt 0:04:40]} 36. Ned4 {[%emt 0:01:59]} axb4 {[%emt 0:03:11]} 37. Ng5 {[%emt 0:00:18]} Nh6 {[%emt 0:01:00]} 38. Nxc6 {[%emt 0:02:28]} bxc6 {[%emt 0:02:06]} 39. Rxc6 {[%emt 0:00:01]} Re8 {[%emt 0:01:24]} 40. Rxe6 {[%emt 0:01:09]} Qd8 {[%emt 0:01:19]} 41. Rxe8 {[%emt 0:04:54]} Qxe8 {[%emt 0:00:07]} 42. Qf6+ {[%emt 0:00:02]} Kg8 {[%emt 0:00:14]} 43. Ne6 {[%emt 0:00:02]} 1-0

[Event "44th Chess Olympiad Open 2022"]
[Site "Chennai"]
[Date "2022.08.05"]
[Round "7.15"]
[White "Priasmoro, Novendra"]
[Black "Nguyen, Thai Dai Van"]
[Result "1/2-1/2"]
[ECO "B30"]
[WhiteElo "2494"]
[BlackElo "2629"]
[Annotator "ChessBase"]
[PlyCount "79"]
[EventDate "2022.07.29"]
[EventType "team-tourn"]
[EventCountry "IND"]
[SourceTitle "playchess.com"]
[Source "ChessBase"]
[SourceQuality "1"]
[WhiteTeam "Indonesia"]
[BlackTeam "Czech Republic"]
[WhiteTeamCountry "INA"]
[BlackTeamCountry "CZE"]
[TimeControl "40/5400+30:1800+30"]

1. e4 {[%emt 0:00:04]} c5 {[%emt 0:00:29]} 2. Nf3 {[%emt 0:00:09]} Nc6 {[%emt 0:00:10]} 3. Bb5 {[%emt 0:00:26]} e6 {[%emt 0:01:48]} 4. O-O {[%emt 0:00:14]} Nge7 {[%emt 0:00:15]} 5. Re1 {[%emt 0:00:27]} a6 {[%emt 0:11:14]} 6. Bxc6 {[%emt 0:02:27]} Nxc6 {[%emt 0:00:12]} 7. d4 {[%emt 0:00:07]} cxd4 {[%emt 0:00:10]} 8. Nxd4 {[%emt 0:00:05]} Nxd4 {[%emt 0:02:20]} 9. Qxd4 {[%emt 0:00:07]} b5 {[%emt 0:00:12]} 10. Nc3 {[%emt 0:01:38]} f6 {[%emt 0:00:17]} 11. a4 {[%emt 0:19:52]} b4 {[%emt 0:00:45]} 12. Nd5 {[%emt 0:00:47]} Qa5 {[%emt 0:23:30]} 13. Qb6 {[%emt 0:09:08]} Qxb6 {[%emt 0:00:06]} 14. Nxb6 {[%emt 0:00:04]} Rb8 {[%emt 0:00:06]} 15. Nc4 {[%emt 0:05:00]} Bb7 {[%emt 0:04:06]} 16. Bf4 {[%emt 0:03:12]} e5 {[%emt 0:16:34]} 17. Bg3 {[%emt 0:00:16]} Rc8 {[%emt 0:06:33]} 18. b3 {[%emt 0:00:19]} Bc5 {[%emt 0:00:47]} 19. Rad1 {[%emt 0:02:39]} Ke7 {[%emt 0:02:04]} 20. Kf1 {[%emt 0:04:14]} Rhd8 {[%emt 0:00:28]} 21. f4 {[%emt 0:13:30]} d6 {[%emt 0:00:05]} 22. Na5 {[%emt 0:07:01]} Ba8 {[%emt 0:01:05]} 23. Re2 {[%emt 0:00:12]} g5 {[%emt 0:04:42]} 24. fxg5 {[%emt 0:05:12]} fxg5 {[%emt 0:00:05]} 25. Rd3 {[%emt 0:00:10]} Rf8+ {[%emt 0:02:19]} 26. Ke1 {[%emt 0:06:47]} Rf6 {[%emt 0:01:46]} 27. Nc4 {[%emt 0:01:38]} Rcf8 {[%emt 0:02:03]} 28. Nd2 {[%emt 0:01:32]} Bb7 {[%emt 0:04:28]} 29. Rf3 {[%emt 0:01:19]} a5 {[%emt 0:06:27]} 30. Rxf6 {[%emt 0:02:26]} Rxf6 {[%emt 0:00:00]} 31. Bf2 {[%emt 0:00:15]} Ba6 {[%emt 0:03:40]} 32. Bxc5 {[%emt 0:02:35]} dxc5 {[%emt 0:00:02]} 33. Rf2 {[%emt 0:00:09]} Rxf2 {[%emt 0:02:34]} 34. Kxf2 {[%emt 0:00:05]} Kd6 {[%emt 0:00:29]} 35. Ke3 {[%emt 0:03:35]} h6 {[%emt 0:00:46]} 36. g3 {[%emt 0:01:16]} Ke6 {[%emt 0:01:42]} 37. Nf3 {[%emt 0:05:22]} Kd6 {[%emt 0:00:57]} 38. Nd2 {[%emt 0:00:24]} Ke6 {[%emt 0:00:06]} 39. Nf3 {[%emt 0:00:42]} Kd6 {[%emt 0:00:02]} 40. Nd2 {[%emt 0:01:09]} 1/2-1/2

[Event "44th Chess Olympiad Open 2022"]
[Site "Chennai"]
[Date "2022.08.05"]
[Round "7.15"]
[White "Ervan, Mohamad"]
[Black "Michalik, Peter"]
[Result "1/2-1/2"]
[ECO "C81"]
[WhiteElo "2402"]
[BlackElo "2559"]
[Annotator "ChessBase"]
[PlyCount "82"]
[EventDate "2022.07.29"]
[EventType "team-tourn"]
[EventCountry "IND"]
[SourceTitle "playchess.com"]
[Source "ChessBase"]
[SourceQuality "1"]
[WhiteTeam "Indonesia"]
[BlackTeam "Czech Republic"]
[WhiteTeamCountry "INA"]
[BlackTeamCountry "CZE"]
[TimeControl "40/5400+30:1800+30"]

1. e4 {[%emt 0:00:10]} e5 {[%emt 0:00:06]} 2. Nf3 {[%emt 0:00:05]} Nc6 {[%emt 0:00:05]} 3. Bb5 {[%emt 0:00:06]} a6 {[%emt 0:00:05]} 4. Ba4 {[%emt 0:00:04]} Nf6 {[%emt 0:00:07]} 5. O-O {[%emt 0:00:06]} Nxe4 {[%emt 0:00:07]} 6. d4 {[%emt 0:00:48]} b5 {[%emt 0:00:07]} 7. Bb3 {[%emt 0:00:10]} d5 {[%emt 0:00:06]} 8. dxe5 {[%emt 0:00:19]} Be6 {[%emt 0:00:08]} 9. Qe2 {[%emt 0:02:50]} Be7 {[%emt 0:00:59]} 10. Rd1 {[%emt 0:00:50]} O-O {[%emt 0:01:06]} 11. c4 {[%emt 0:00:32]} bxc4 {[%emt 0:00:25]} 12. Bxc4 {[%emt 0:00:06]} Bc5 {[%emt 0:00:38]} 13. Be3 {[%emt 0:00:27]} Bxe3 {[%emt 0:00:08]} 14. Qxe3 {[%emt 0:00:06]} Qb8 {[%emt 0:00:10]} 15. Bb3 {[%emt 0:00:46]} Na5 {[%emt 0:00:43]} 16. Nbd2 {[%emt 0:02:46]} Nxb3 {[%emt 0:03:55]} 17. Nxb3 {[%emt 0:08:15]} c5 {[%emt 0:00:55]} 18. Nxc5 {[%emt 0:01:13]} Nxc5 {[%emt 0:00:06]} 19. Qxc5 {[%emt 0:00:11]} Qxb2 {[%emt 0:00:05]} 20. Qd4 {[%emt 0:28:18]} Qe2 {[%emt 0:10:34]} 21. Rd2 {[%emt 0:10:25]} Qe4 {[%emt 0:01:33]} 22. Re1 {[%emt 0:02:37]} Qg6 {[%emt 0:03:11]} 23. Qd3 {[%emt 0:03:58]} Qxd3 {[%emt 0:03:33]} 24. Rxd3 {[%emt 0:00:06]} Rfb8 {[%emt 0:00:03]} 25. Rd2 {[%emt 0:11:34]} Rb4 {[%emt 0:03:11]} 26. h3 {[%emt 0:00:32]} Rc8 {[%emt 0:06:31]} 27. Re3 {[%emt 0:01:29]} a5 {[%emt 0:03:48]} 28. Rb3 {[%emt 0:02:20]} Re4 {[%emt 0:04:17]} 29. Rb5 {[%emt 0:01:41]} a4 {[%emt 0:03:50]} 30. Ra5 {[%emt 0:10:51]} h6 {[%emt 0:00:44]} 31. Nd4 {[%emt 0:03:03]} Rc4 {[%emt 0:02:10]} 32. Nc2 {[%emt 0:02:36]} Kh7 {[%emt 0:10:52]} 33. f3 {[%emt 0:02:25]} Rxe5 {[%emt 0:00:44]} 34. Kf2 {[%emt 0:00:08]} f6 {[%emt 0:04:45]} 35. a3 {[%emt 0:01:42]} Bf7 {[%emt 0:11:09]} 36. Nb4 {[%emt 0:00:45]} Be8 {[%emt 0:00:55]} 37. Raxd5 {[%emt 0:01:35]} Rxd5 {[%emt 0:00:25]} 38. Nxd5 {[%emt 0:01:19]} Rc1 {[%emt 0:00:12]} 39. Rd4 {[%emt 0:00:48]} Rc2+ {[%emt 0:05:27]} 40. Kg1 {[%emt 0:00:12]} Rc6 {[%emt 0:00:12]} 41. Rb4 {[%emt 0:31:21]} Rc1+ {[%emt 0:43:13]} 1/2-1/2

[Event "44th Chess Olympiad Open 2022"]
[Site "Chennai"]
[Date "2022.08.05"]
[Round "7.16"]
[White "Deac, Bogdan-Daniel"]
[Black "Bachmann, Axel"]
[Result "1-0"]
[ECO "B44"]
[WhiteElo "2692"]
[BlackElo "2588"]
[Annotator "TA"]
[PlyCount "101"]
[EventDate "2022.07.29"]
[EventType "team-tourn"]
[EventCountry "IND"]
[SourceTitle "playchess.com"]
[Source "ChessBase"]
[SourceQuality "1"]
[WhiteTeam "Romania"]
[BlackTeam "Paraguay"]
[WhiteTeamCountry "ROU"]
[BlackTeamCountry "PAR"]
[TimeControl "40/5400+30:1800+30"]

{[%evp 9,101,1,28,27,43,33,45,32,39,32,60,58,53,37,70,81,106,116,138,89,86,91,107,110,136,71,116,109,118,104,118,75,130,127,122,110,115,111,149,130,134,134,132,135,133,134,133,131,148,149,179,136,322,316,462,429,452,443,381,375,353,351,401,392,375,372,946,931,895,881,769,716,1376,1348,12831,12832,12834,12834,12833,12827,12840,12840,12841,12841,12841,12842,12841,12840,12841,12841,12842,12841,12843,12843]} 1. e4 {[%emt 0:00:59]} c5 {[%emt 0:00:12]} 2. Nf3 {[%emt 0:00:05]} e6 {[%emt 0:00:05]} 3. d4 {[%emt 0:01:40]} cxd4 {[%emt 0:00:07]} 4. Nxd4 {[%emt 0:00:03]} Nc6 {[%emt 0:00:07]} 5. a3 {[%emt 0:01:30]} d5 {[%emt 0:09:35]} 6. exd5 {[%emt 0:07:42] B44: Sicilian: Taimanov: 5 Nb5.} exd5 {[%emt 0:07:11]} 7. Nc3 {[%emt 0:02:33]} Nf6 {[%emt 0:00:09]} 8. Be3 $5 {[%emt 0:01:46][%mdl 4] White is slightly better. An interesting side line.} Bd6 {[%emt 0:05:42] [#]} 9. Qd2 $146 {[%emt 0:06:41]} ({Predecessor:} 9. Be2 O-O 10. O-O Re8 11. Bf3 Be6 12. g3 Bc7 13. Nce2 Nxd4 14. Nxd4 Bb6 15. c3 Qd7 {1-0 (36) Fiscato,C (1709)-Fanchin,M (1273) Chioggia 2019}) 9... O-O {[%emt 0:08:22]} 10. O-O-O {[%emt 0:01:40]} Be6 {[%emt 0:19:05]} 11. f3 {[%emt 0:08:24][%cal Bf2f3,Bf3f4][%mdl 32]} Nxd4 {[%emt 0:07:27]} 12. Bxd4 {[%emt 0:03:00]} Nd7 {[%emt 0:01:30]} 13. f4 {[%emt 0:05:53]} Nc5 {[%emt 0:06:47]} 14. g3 {[%emt 0:09:16]} ({Better is} 14. f5 Bxf5 15. Qf2) 14... Rc8 $16 {[%emt 0:11:37]} 15. Bg2 {[%emt 0:00:30]} Qd7 {[%emt 0:08:32]} 16. Kb1 {[%emt 0:08:25]} (16. Bxd5 $6 Bxd5 17. Rhe1 (17. Bxc5 Bxh1 18. Qxd6 Qxd6 $17) 17... Nb3+ 18. cxb3 Rfd8 $14) 16... Rfd8 {[%emt 0:01:08]} 17. Qe3 {[%emt 0:12:08]} (17. Bxd5 Bg4 $16) (17. Nxd5 $142 {aiming for Qe2.} Bf8 18. Ne3) 17... Re8 {[%emt 0:03:00] [#]} 18. Qf2 $1 {[%emt 0:02:42]} Bg4 {[%emt 0:01:21]} 19. Rde1 {[%emt 0:05:07]} (19. Bxd5 $6 Bxd1 20. Rxd1 b6 $11) (19. Nxd5 Re2 20. Qf1 {[#]} Rxc2 $1 $17) 19... Na4 {[%emt 0:04:41]} 20. Qd2 {[%emt 0:11:40]} (20. Bxd5 $6 Nxc3+ 21. Bxc3 Bxa3 $11) 20... Bf5 {[%emt 0:00:57]} ({Black should try} 20... Be6) 21. Rxe8+ {[%emt 0:01:34]} ({Don't take} 21. Bxd5 $6 Red8 $14) 21... Qxe8 {[%emt 0:00:01]} 22. Re1 {[%emt 0:03:00]} Qd7 {[%emt 0:00:03]} 23. Bxd5 {[%emt 0:00:59]} (23. h3 {looks sharper.} h5 24. g4 Nxc3+ 25. Bxc3 hxg4 26. hxg4 Bxg4 27. Bxd5 Bf8 28. Qg2) 23... Bc5 {[%emt 0:01:47]} 24. Nxa4 {[%emt 0:01:13]} Bxd4 {[%emt 0:00:29]} 25. Qxd4 {[%emt 0:00:42]} Bxc2+ {[%emt 0:00:03]} 26. Ka1 {[%emt 0:00:06]} Bxa4 {[%emt 0:00:09]} 27. Qxa7 {[%emt 0:00:07] 0x0.0024c28cabbddp-1022s more active pieces.} Qxd5 {[%emt 0:01:30]} 28. Qxa4 {[%emt 0:00:04][%mdl 4096] Endgame Intending Re8+ and mate. KQR-KQR} h5 {[%emt 0:01:02]} 29. Qd1 {[%emt 0:02:26]} Qxd1+ {[%emt 0:01:49]} 30. Rxd1 {[%emt 0:00:03] Black must now prevent h4. KR-KR} Rc2 $2 {[%emt 0:00:18] This move loses the game for Black.} (30... h4 $16 {was worth a try.} 31. Kb1 (31. gxh4 Rc4 $16) 31... hxg3) 31. h4 $18 {[%emt 0:00:16]} g6 {[%emt 0:00:41]} (31... Rc7 $142 32. Rd8+ Kh7) 32. Rd3 {[%emt 0:01:21]} Kf8 {[%emt 0:00:25]} 33. Rb3 {[%emt 0:01:12]} Rc7 {[%emt 0:00:29]} 34. Kb1 {[%emt 0:01:52]} Ke8 {[%emt 0:00:19]} 35. Rb6 {[%emt 0:00:44]} Kd7 {[%emt 0:00:11]} 36. f5 {[%emt 0:00:20]} gxf5 {[%emt 0:00:37]} 37. Rf6 {[%emt 0:00:20][%csl LRf5,LRf7]} Rc4 $2 {[%emt 0:00:40]} (37... Rc5 38. Rxf7+ Kc6) 38. Rxf7+ {[%emt 0:00:52] White is clearly winning.} Ke6 {[%emt 0:00:06]} 39. Rxb7 {[%emt 0:00:04]} Rg4 {[%emt 0:00:05]} 40. Rb3 {[%emt 0:00:52]} f4 {[%emt 0:00:05]} 41. gxf4 {[%emt 0:30:35]} ({Not} 41. Rb6+ Kf5 42. gxf4 (42. Rb5+ Kg6 $16) 42... Rxh4 $16) 41... Rxh4 {[%emt 0:03:37]} 42. Rb5 {[%emt 0:00:00]} Kf6 {[%emt 0:00:24]} 43. Rg5 {[%emt 0:00:00]} Rh1+ {[%emt 0:00:54]} 44. Ka2 {[%emt 0:00:00]} ({Less strong is} 44. Kc2 h4 $16) 44... h4 {[%emt 0:00:04]} 45. a4 {[%emt 0:00:00][%cal Ba3a4,Ba4a5,Ba5a6][%mdl 32]} Rf1 {[%emt 0:00:13]} 46. Rg4 {[%emt 0:00:00]} Rh1 {[%emt 0:01:20]} 47. a5 {[%emt 0:00:00]} Kf5 {[%emt 0:00:06]} 48. Rg8 {[%emt 0:00:00]} Rd1 {[%emt 0:00:38]} 49. Rh8 {[%emt 0:00:00]} Kg4 {[%emt 0:00:15]} 50. b4 {[%emt 0:00:00]} h3 {[%emt 0:00:08]} 51. a6 {[%emt 0:00:00] Weighted Error Value: White=0.07 (flawless) /Black=0.29 (precise)} 1-0

[Event "44th Chess Olympiad Open 2022"]
[Site "Chennai"]
[Date "2022.08.05"]
[Round "7.16"]
[White "Delgado Ramirez, Neuris"]
[Black "Lupulescu, Constantin"]
[Result "1/2-1/2"]
[ECO "C11"]
[WhiteElo "2614"]
[BlackElo "2628"]
[Annotator "ChessBase"]
[PlyCount "70"]
[EventDate "2022.07.29"]
[EventType "team-tourn"]
[EventCountry "IND"]
[SourceTitle "playchess.com"]
[Source "ChessBase"]
[SourceQuality "1"]
[WhiteTeam "Paraguay"]
[BlackTeam "Romania"]
[WhiteTeamCountry "PAR"]
[BlackTeamCountry "ROU"]
[TimeControl "40/5400+30:1800+30"]

1. e4 {[%emt 0:00:07]} e6 {[%emt 0:00:03]} 2. d4 {[%emt 0:00:06]} d5 {[%emt 0:00:06]} 3. Nc3 {[%emt 0:00:18]} Nf6 {[%emt 0:00:07]} 4. e5 {[%emt 0:02:32]} Nfd7 {[%emt 0:00:05]} 5. f4 {[%emt 0:01:15]} c5 {[%emt 0:00:33]} 6. Nf3 {[%emt 0:01:40]} Nc6 {[%emt 0:00:14]} 7. Be3 {[%emt 0:04:54]} Be7 {[%emt 0:01:06]} 8. Qd2 {[%emt 0:09:27]} a6 {[%emt 0:00:38]} 9. a3 {[%emt 0:01:33]} b5 {[%emt 0:06:46]} 10. dxc5 {[%emt 0:04:24]} Nxc5 {[%emt 0:01:02]} 11. Qf2 {[%emt 0:06:38]} Nd7 {[%emt 0:02:43]} 12. Bd3 {[%emt 0:02:40]} O-O {[%emt 0:12:24]} 13. O-O {[%emt 0:00:58]} f6 {[%emt 0:05:50]} 14. exf6 {[%emt 0:08:02]} Nxf6 {[%emt 0:03:35]} 15. Nd4 {[%emt 0:01:47]} Bd7 {[%emt 0:07:12]} 16. Nxc6 {[%emt 0:11:49]} Bxc6 {[%emt 0:00:09]} 17. Bd4 {[%emt 0:00:04]} Bd7 {[%emt 0:14:47]} 18. Kh1 {[%emt 0:05:39]} Qc7 {[%emt 0:07:51]} 19. Be5 {[%emt 0:02:38]} Bd6 {[%emt 0:01:11]} 20. Bxd6 {[%emt 0:01:32]} Qxd6 {[%emt 0:00:04]} 21. Qd4 {[%emt 0:00:17]} Rab8 {[%emt 0:05:30]} 22. b4 {[%emt 0:05:03]} Qb6 {[%emt 0:01:57]} 23. Ne2 {[%emt 0:02:09]} Be8 {[%emt 0:00:56]} 24. Qxb6 {[%emt 0:00:42]} Rxb6 {[%emt 0:00:03]} 25. Nd4 {[%emt 0:00:11]} Bg6 {[%emt 0:00:29]} 26. f5 {[%emt 0:05:22]} exf5 {[%emt 0:00:57]} 27. Nxf5 {[%emt 0:00:32]} Re8 {[%emt 0:09:33]} 28. h3 {[%emt 0:00:39]} Bxf5 {[%emt 0:08:52]} 29. Rxf5 {[%emt 0:00:36]} g6 {[%emt 0:01:57]} 30. Rf4 {[%emt 0:00:23]} Ne4 {[%emt 0:00:42]} 31. a4 {[%emt 0:04:00]} bxa4 {[%emt 0:00:50]} 32. Ra2 {[%emt 0:00:26]} a3 33. Rxa3 {[%emt 0:00:31]} Ree6 {[%emt 0:04:46]} 34. Ra4 {[%emt 0:02:04]} Kg7 {[%emt 0:01:01]} 35. Kh2 {[%emt 0:01:36]} Nc3 {[%emt 0:00:53]} 1/2-1/2